bitfinex/quotes_SOLUSD_20240530
["timestamp","ask_amount","ask_price","bid_price","bid_amount"]
[1717090704380,22.318,172.02,172.01,60.0]
[1717090704552,28.168,172.02,172.01,60.0]
[1717090705372,5.85,172.02,171.99,60.0]
[1717090705573,22.0242,172.0,171.99,60.0]
[1717090706766,16.05969602,172.04,172.03,60.0]
[1717090707077,21.90969602,172.04,172.03,60.0]
[1717090707266,22.39499602,172.04,172.03,60.0]
[1717090708988,6.37159602,172.04,172.03,60.0]
[1717090709167,0.03629602,172.04,172.03,60.0]
[1717090709485,0.03629602,172.04,172.03,77.69]
[1717090709691,0.03629602,172.04,172.03,83.54]
[1717090709979,0.03629602,172.04,172.03,60.0]
[1717090710184,0.03629602,172.04,172.03,65.85]
[1717090710387,0.03629602,172.04,172.03,60.0]
[1717090710863,0.03629602,172.04,172.03,65.85]
[1717090713501,0.03629602,172.04,172.03,60.0]
[1717090713662,0.03629602,172.04,172.03,65.85]
[1717090715090,0.03629602,172.04,172.03,60.0]
[1717090715398,6.47489602,172.04,172.03,60.0]
[1717090716601,0.03629602,172.04,172.03,60.0]
[1717090718413,0.03629602,172.04,172.03,65.85]
[1717090719196,0.03629602,172.04,172.03,83.54]
[1717090720208,0.03629602,172.04,172.03,79.8407]
[1717090720401,0.03629602,172.04,172.03,85.6907]
[1717090720604,0.03629602,172.04,172.03,83.54]
[1717090720905,0.03629602,172.04,172.03,92.2479]
[1717090722817,0.03629602,172.04,172.03,86.3979]
[1717090722996,0.03629602,172.04,172.03,92.2479]
[1717090723504,0.03629602,172.04,172.03,477.4494]
[1717090723733,0.03629602,172.04,172.03,493.5989]
[1717090723916,0.03629602,172.04,172.03,500.0512]
[1717090724115,0.03629602,172.04,172.03,487.7489]
[1717090724308,0.03629602,172.04,172.03,493.5989]
[1717090724519,0.3639847,172.06,172.05,79.8405]
[1717090724727,0.3639847,172.06,172.05,92.0035]
[1717090725226,0.3639847,172.06,172.05,96.3045]
[1717090727541,0.3639847,172.06,172.05,79.8405]
[1717090727725,0.3639847,172.06,172.05,85.6905]
[1717090728107,0.3639847,172.06,172.05,466.5905]
[1717090729217,0.3639847,172.06,172.05,460.7405]
[1717090729847,0.3639847,172.06,172.05,466.5905]
[1717090730511,0.3639847,172.06,172.05,464.44]
[1717090730709,0.3639847,172.06,172.05,446.75]
[1717090730910,0.3639847,172.06,172.05,440.9]
[1717090733957,0.3639847,172.06,172.05,60.0]
[1717090735429,2.5143847,172.06,172.05,60.0]
[1717090739561,21.7358,172.04,172.03,60.0]
[1717090739727,29.7364,172.04,172.03,60.0]
[1717090739926,23.8867,172.02,172.01,60.0]
[1717090740129,8.4666,172.02,172.01,60.0]
[1717090740334,2.1509,172.02,172.01,60.0]
[1717090740759,8.6461,172.02,172.01,60.0]
[1717090741069,24.6917,172.02,172.01,60.0]
[1717090742162,0.3639847,172.06,171.99,60.0]
[1717090742163,23.3859,172.0,171.99,60.0]
[1717090742393,2.1514,171.98,171.95,60.0]
[1717090742653,23.3864,171.96,171.95,60.0]
[1717090744662,23.3864,171.96,171.85,380.9]
[1717090744663,8.7474,171.94,171.93,60.0]
[1717090745343,24.8617,171.92,171.91,60.0]
[1717090745639,8.7476,171.92,171.91,60.0]
[1717090747059,25.1238,171.92,171.91,60.0]
[1717090747251,2.1528,171.87,171.86,60.0]
[1717090747660,2.1528,171.87,171.82,17.69]
[1717090747661,6.5955,171.92,171.91,60.0]
[1717090747968,8.7476,171.92,171.91,60.0]
[1717090748951,6.07295387,171.98,171.95,60.0]
[1717090748952,8.628,171.96,171.95,60.0]
[1717090749154,8.628,171.96,171.86,19.8428]
[1717090749155,2.1519,171.94,171.93,60.0]
[1717090749376,8.6283,171.94,171.93,60.0]
[1717090749549,23.9304,171.94,171.93,60.0]
[1717090749748,8.6285,171.92,171.91,60.0]
[1717090750866,2.1521,171.92,171.91,60.0]
[1717090751572,2.1523,171.91,171.9,60.0]
[1717090753380,6.4829,171.96,171.95,60.0]
[1717090753671,2.1516,171.96,171.95,60.0]
[1717090753876,8.20543753,171.97,171.95,60.0]
[1717090754079,2.1515,171.97,171.95,60.0]
[1717090754252,23.7976,172.03,172.02,60.0]
[1717090754449,23.7976,172.03,171.93,17.69]
[1717090754450,2.151,172.01,172.0,60.0]
[1717090756064,6.05561523,172.05,172.04,60.0]
[1717090756272,2.1505,172.05,172.04,60.0]
[1717090757273,0.3639847,172.06,172.05,60.0]
[1717090757488,2.5143847,172.06,172.05,60.0]
[1717090759502,2.5143847,172.06,172.03,60.0]
[1717090759503,8.8066,172.04,172.03,60.0]
[1717090760795,2.1506,172.04,172.03,60.0]
[1717090760971,8.8066,172.04,172.03,60.0]
[1717090761973,8.8069,172.02,172.01,60.0]
[1717090762170,2.1511,172.0,171.99,60.0]
[1717090762484,2.1514,171.98,171.97,60.0]
[1717090763493,8.8074,171.98,171.97,60.0]
[1717090763863,6.0892,171.97,171.94,60.0]
[1717090764064,2.1517,171.95,171.94,60.0]
[1717090764264,2.152,171.93,171.92,60.0]
[1717090764666,8.2412,171.93,171.92,60.0]
[1717090764894,2.55439975,172.0,171.91,380.9]
[1717090764895,8.2413,171.92,171.91,380.9]
[1717090765559,8.2413,171.92,171.91,440.9]
[1717090765759,2.1521,171.92,171.91,440.9]
[1717090765968,2.1521,171.92,171.91,60.0]
[1717090771892,2.1521,171.92,171.84,19.8431]
[1717090771893,6.04983635,171.99,171.98,60.0]
[1717090772097,2.1512,171.99,171.98,60.0]
[1717090772590,0.3639847,172.06,172.02,60.0]
[1717090772591,8.2007006,172.03,172.02,60.0]
[1717090772781,2.1507,172.03,172.02,60.0]
[1717090776990,6.40991884,172.06,172.0,60.0]
[1717090777398,6.40991884,172.06,172.02,60.0]
[1717090777603,6.0977,172.05,172.02,60.0]
[1717090778010,6.40991884,172.06,172.04,60.0]
[1717090778790,0.3639847,172.06,172.04,60.0]
[1717090780088,2.1505,172.05,172.04,60.0]
[1717090780289,0.3639847,172.06,172.04,60.0]
[1717090781096,2.5143847,172.06,172.04,60.0]
[1717090781902,2.1505,172.05,172.04,60.0]
[1717090783721,2.1507,172.03,172.02,60.0]
[1717090784391,2.151,172.01,172.0,60.0]
[1717090788214,2.1514,171.98,171.97,60.0]
[1717090788988,0.3639847,172.06,172.05,60.0]
[1717090789304,2.5143847,172.06,172.05,60.0]
[1717090790116,2.1506,172.04,172.03,60.0]
[1717090794016,2.5143847,172.06,172.05,60.0]
[1717090795624,0.3639847,172.06,172.05,60.0]
[1717090796004,2.5143847,172.06,172.05,60.0]
[1717090800213,2.5143847,172.06,171.95,398.43]
[1717090800214,2.1507,172.03,172.02,60.0]
[1717090801135,6.3996847,172.06,172.0,60.0]
[1717090801334,6.3996847,172.06,172.03,60.0]
[1717090801510,0.3639847,172.06,172.03,60.0]
[1717090801716,0.3639847,172.06,172.05,60.0]
[1717090805243,0.3639847,172.06,172.05,66.6436]
[1717090805829,0.3639847,172.06,172.05,86.4841]
[1717090806016,0.3639847,172.06,172.05,102.2421]
[1717090807439,0.3639847,172.06,172.05,100.0916]
[1717090808640,0.3639847,172.06,172.05,102.2421]
[1717090810217,0.3639847,172.06,172.05,100.0916]
[1717090810520,0.3639847,172.06,172.05,102.2421]
[1717090812642,0.3639847,172.06,172.05,106.5431]
[1717090813430,0.3639847,172.06,172.05,487.4431]
[1717090814127,0.3639847,172.06,172.05,493.8947]
[1717090814632,0.3639847,172.06,172.05,529.1147]
[1717090814940,6.86214914,172.19,172.18,60.0]
[1717090815145,0.793509,172.19,172.18,60.0]
[1717090816156,2.942209,172.19,172.13,19.8394]
[1717090816328,2.1489,172.18,172.17,60.0]
[1717090818467,2.1491,172.16,172.15,60.0]
[1717090819658,8.1701,172.16,172.15,60.0]
[1717090820651,2.1491,172.16,172.15,60.0]
[1717090825249,0.793509,172.19,172.18,60.0]
[1717090825446,2.942209,172.19,172.18,60.0]
[1717090833756,0.793509,172.19,172.18,60.0]
[1717090835782,0.793509,172.19,172.18,60.0]
[1717090836566,2.942209,172.19,172.18,60.0]
[1717090842859,0.793509,172.19,172.18,60.0]
[1717090847189,2.942209,172.19,172.18,60.0]
[1717090849879,6.2445,172.37,172.3,60.0]
[1717090850065,23.7745,172.37,172.3,60.0]
[1717090850265,6.2445,172.33,172.32,60.0]
[1717090850461,15.2268,172.31,172.27,60.0]
[1717090850661,21.5893,172.31,172.3,60.0]
[1717090851080,6.3625,172.31,172.3,60.0]
[1717090851387,6.4124,172.31,172.3,60.0]
[1717090851891,6.4124,172.31,172.28,60.0]
[1717090852097,6.4124,172.31,172.3,60.0]
[1717090852267,6.05302012,172.33,172.32,60.0]
[1717090852474,7.277009,172.36,172.32,60.0]
[1717090852475,6.447,172.35,172.32,60.0]
[1717090852686,6.447,172.35,172.34,60.0]
[1717090852888,6.447,172.35,172.32,60.0]
[1717090853073,6.447,172.34,172.32,60.0]
[1717090853390,6.85157316,172.36,172.35,60.0]
[1717090853681,6.0224,172.35,172.33,60.0]
[1717090854470,0.793509,172.36,172.35,60.0]
[1717090855278,0.793509,172.36,172.32,60.0]
[1717090855588,6.0224,172.35,172.34,60.0]
[1717090855801,50.0,172.5,172.37,17.5861]
[1717090855977,17.53,172.47,172.38,60.0]
[1717090856283,17.53,172.47,172.29,33.66352822]
[1717090856284,17.53,172.44,172.36,60.0]
[1717090856491,17.53,172.44,172.38,60.0]
[1717090856865,17.53,172.44,172.36,60.0]
[1717090857063,17.53,172.44,172.32,60.0]
[1717090857064,17.53,172.41,172.32,60.0]
[1717090857283,17.53,172.41,172.34,60.0]
[1717090857570,17.53,172.44,172.36,60.0]
[1717090858190,17.53,172.45,172.36,60.0]
[1717090858492,20.08439975,172.45,172.34,60.0]
[1717090858672,6.1151,172.49,172.37,60.0]
[1717090858673,7.13475697,172.48,172.37,60.0]
[1717090858874,17.53,172.45,172.37,60.0]
[1717090859278,48.46569975,172.5,172.44,60.0]
[1717090859490,65.99569975,172.5,172.42,60.0]
[1717090859898,65.99569975,172.5,172.44,60.0]
[1717090860301,65.99569975,172.5,172.24,54.6171707]
[1717090860302,17.53,172.48,172.37,60.0]
[1717090860488,17.53,172.49,172.4,60.0]
[1717090861274,48.46569975,172.5,172.42,60.0]
[1717090861576,48.46569975,172.5,172.44,60.0]
[1717090862710,48.46569975,172.5,172.42,60.0]
[1717090862901,17.53,172.48,172.38,60.0]
[1717090863072,17.53,172.48,172.36,60.0]
[1717090863574,35.22,172.48,172.36,60.0]
[1717090863974,17.53,172.48,172.36,60.0]
[1717090864807,66.15569975,172.5,172.38,60.0]
[1717090865094,17.53,172.47,172.38,60.0]
[1717090865706,48.46569975,172.5,172.41,60.0]
[1717090867890,17.53,172.49,172.39,60.0]
[1717090868797,17.53,172.49,172.37,60.0]
[1717090869592,35.22,172.49,172.37,60.0]
[1717090869798,17.53,172.46,172.35,60.0]
[1717090870091,0.68372235,172.45,172.37,60.0]
[1717090870301,0.68372235,172.45,172.35,60.0]
[1717090870495,6.3778,172.44,172.33,60.0]
[1717090870700,17.53,172.4,172.29,60.0]
[1717090871194,17.53,172.37,172.29,60.0]
[1717090873174,17.53,172.34,172.25,60.0]
[1717090874091,17.53,172.34,172.23,60.0]
[1717090874305,17.53,172.31,172.23,60.0]
[1717090877410,17.53,172.31,172.21,60.0]
[1717090877708,24.0698,172.31,172.23,60.0]
[1717090877899,6.5398,172.31,172.25,60.0]
[1717090878713,24.0698,172.31,172.23,60.0]
[1717090879999,6.5398,172.31,172.25,60.0]
[1717090881094,6.5398,172.31,172.12,398.43]
[1717090881095,17.53,172.3,172.21,60.0]
[1717090881710,17.53,172.3,172.13,2.1495]
[1717090881711,6.2883,172.3,172.26,60.0]
[1717090882526,6.2384,172.3,172.26,60.0]
[1717090883023,6.4137,172.3,172.24,60.0]
[1717090883328,0.68372235,172.31,172.24,60.0]
[1717090884514,0.68372235,172.31,172.22,60.0]
[1717090884818,17.53,172.3,172.22,60.0]
[1717090885207,18.21372235,172.3,172.22,60.0]
[1717090885518,18.21372235,172.3,172.2,60.0]
[1717090885724,17.53,172.27,172.2,60.0]
[1717090888526,6.1951,172.29,172.26,60.0]
[1717090888705,6.3774,172.32,172.28,60.0]
[1717090889546,6.3774,172.32,172.3,60.0]
[1717090889713,18.21372235,172.36,172.3,60.0]
[1717090890530,18.21372235,172.36,172.28,60.0]
[1717090892240,18.21372235,172.36,172.26,60.0]
[1717090892444,18.21372235,172.36,172.24,60.0]
[1717090892616,17.53,172.33,172.24,60.0]
[1717090892818,17.53,172.33,172.26,60.0]
[1717090893022,6.6614,172.32,172.28,60.0]
[1717090895125,15.483,172.32,172.28,60.0]
[1717090895325,6.6614,172.31,172.28,60.0]
[1717090895844,0.68372235,172.35,172.28,60.0]
[1717090896020,17.53,172.32,172.24,60.0]
[1717090896347,17.53,172.32,172.26,60.0]
[1717090898830,22.1444,172.34,172.27,60.0]
[1717090899431,22.1444,172.34,172.25,60.0]
[1717090899824,22.1444,172.34,172.27,60.0]
[1717090900026,22.1444,172.34,172.25,60.0]
[1717090900345,22.1444,172.34,172.27,60.0]
[1717090901141,22.1444,172.34,172.25,60.0]
[1717090901546,22.1444,172.34,172.27,60.0]
[1717090903338,15.483,172.34,172.3,60.0]
[1717090903548,6.2398,172.34,172.28,60.0]
[1717090904125,6.2398,172.34,172.3,60.0]
[1717090904750,0.68372235,172.38,172.32,60.0]
[1717090905058,16.3483,172.38,172.34,60.0]
[1717090905230,22.5881,172.38,172.34,60.0]
[1717090905432,6.2398,172.38,172.34,60.0]
[1717090905745,6.92352235,172.41,172.36,60.0]
[1717090906147,6.92352235,172.41,172.38,60.0]
[1717090906535,6.2398,172.41,172.38,60.0]
[1717090907040,0.68372235,172.44,172.38,60.0]
[1717090907435,0.68372235,172.44,172.42,60.0]
[1717090907754,94.46569975,172.5,172.47,60.0]
[1717090908265,94.46569975,172.5,172.49,60.0]
[1717090908466,94.46569975,172.5,172.46,60.0]
[1717090908764,100.53569975,172.5,172.46,60.0]
[1717090908971,94.46569975,172.5,172.46,60.0]
[1717090909267,94.46569975,172.5,172.48,60.0]
[1717090910236,94.46569975,172.5,172.46,60.0]
[1717090910440,94.46569975,172.5,172.43,60.0]
[1717090910651,94.46569975,172.5,172.45,60.0]
[1717090910840,101.08519975,172.5,172.45,60.0]
[1717090911046,94.46569975,172.5,172.49,60.0]
[1717090911250,94.46569975,172.5,172.47,60.0]
[1717090911861,48.46569975,172.5,172.47,60.0]
[1717090912544,48.46569975,172.5,172.49,60.0]
[1717090916941,48.46569975,172.5,172.49,72.0948]
[1717090919256,48.46569975,172.5,172.49,91.9298]
[1717090920374,36.37089975,172.5,172.49,79.835]
[1717090920542,0.0361861,172.56,172.51,84.1244]
[1717090920741,0.0361861,172.56,172.51,101.6544]
[1717090920947,0.0361861,172.56,172.51,116.668]
[1717090921148,0.0361861,172.56,172.55,79.8343]
[1717090921668,0.0361861,172.56,172.55,97.3643]
[1717090923550,0.0361861,172.56,172.55,79.6743]
[1717090924862,0.0361861,172.56,172.55,83.9629]
[1717090925171,0.0361861,172.56,172.55,98.54008055]
[1717090925375,0.0361861,172.56,172.55,116.23008055]
[1717090925554,0.0361861,172.56,172.55,532.35008055]
[1717090925759,0.0361861,172.56,172.55,540.92728055]
[1717090926146,0.0361861,172.56,172.55,548.16952244]
[1717090927253,0.0161861,172.56,172.55,451.18858055]
[1717090927465,0.0161861,172.56,172.55,443.0443]
[1717090927664,13.7036798,172.75,172.67,60.0]
[1717090927869,13.7036798,172.75,172.65,60.0]
[1717090928068,6.0644,172.71,172.63,60.0]
[1717090928272,6.0644,172.71,172.53,8.11019166]
[1717090928273,6.0644,172.71,172.61,60.0]
[1717090928576,6.0644,172.71,172.51,17.53]
[1717090928577,6.0644,172.71,172.63,60.0]
[1717090928779,6.0644,172.71,172.61,60.0]
[1717090929376,16.4349,172.68,172.61,60.0]
[1717090929974,22.5936,172.68,172.63,60.0]
[1717090930166,22.5936,172.66,172.65,60.0]
[1717090931480,17.53,172.76,172.68,60.0]
[1717090932055,17.53,172.76,172.7,60.0]
[1717090932878,17.53,172.76,172.68,60.0]
[1717090933275,17.03,172.76,172.68,60.0]
[1717090933458,0.68372235,172.77,172.44,35.22]
[1717090933459,22.9962,172.72,172.65,60.0]
[1717090933664,17.53,172.7,172.65,60.0]
[1717090934277,21.5665,172.66,172.65,60.0]
[1717090935381,17.53,172.67,172.58,60.0]
[1717090935679,17.53,172.67,172.46,8.5816]
[1717090935680,17.53,172.66,172.6,60.0]
[1717090936387,23.2147,172.69,172.6,60.0]
[1717090937285,23.2147,172.69,172.58,60.0]
[1717090937488,23.2147,172.69,172.56,60.0]
[1717090937982,40.9047,172.69,172.56,60.0]
[1717090938179,20.33,172.66,172.54,60.0]
[1717090938385,20.33,172.66,172.52,60.0]
[1717090938386,15.944,172.64,172.52,60.0]
[1717090938569,15.944,172.64,172.5,60.0]
[1717090938884,6.0618,172.6,172.5,60.0]
[1717090939080,15.944,172.59,172.48,60.0]
[1717090939469,6.2679,172.58,172.46,60.0]
[1717090939663,6.2679,172.58,172.48,60.0]
[1717090940177,6.2679,172.58,172.46,60.0]
[1717090940374,6.2679,172.58,172.55,60.0]
[1717090940598,6.2679,172.58,172.52,60.0]
[1717090940767,6.2679,172.58,172.5,60.0]
[1717090940969,6.2679,172.58,172.48,60.0]
[1717090941671,6.2679,172.58,172.46,60.0]
[1717090941870,15.3466,172.57,172.44,60.0]
[1717090942077,15.3466,172.57,172.42,60.0]
[1717090942078,20.33,172.55,172.42,60.0]
[1717090942675,16.2411,172.54,172.42,60.0]
[1717090942999,16.2411,172.54,172.44,60.0]
[1717090943698,16.2411,172.54,172.47,60.0]
[1717090944481,22.4294,172.53,172.51,60.0]
[1717090944797,6.4885,172.52,172.49,60.0]
[1717090945115,22.4294,172.51,172.49,60.0]
[1717090945393,22.4294,172.51,172.47,60.0]
[1717090945788,6.3339,172.5,172.47,60.0]
[1717090945992,0.68372235,172.57,172.45,60.0]
[1717090946179,6.3339,172.47,172.45,60.0]
[1717090946372,6.5035,172.45,172.43,60.0]
[1717090946978,21.6608,172.56,172.45,60.0]
[1717090947302,21.6608,172.56,172.47,60.0]
[1717090947499,21.6608,172.56,172.49,60.0]
[1717090947710,21.6608,172.56,172.47,60.0]
[1717090948107,0.68372235,172.54,172.45,60.0]
[1717090948275,0.68372235,172.54,172.47,60.0]
[1717090948998,0.68372235,172.54,172.49,60.0]
[1717090949293,6.061,172.51,172.49,60.0]
[1717090949528,6.061,172.53,172.49,60.0]
[1717090949826,22.4557,172.52,172.47,60.0]
[1717090950321,6.061,172.52,172.51,60.0]
[1717090950531,22.4557,172.57,172.51,60.0]
[1717090950693,22.4557,172.56,172.53,60.0]
[1717090951725,22.4557,172.56,172.51,60.0]
[1717090951903,0.68372235,172.58,172.49,60.0]
[1717090951904,21.2938,172.54,172.49,60.0]
[1717090952305,21.2938,172.52,172.49,60.0]
[1717090952715,21.2938,172.51,172.47,60.0]
[1717090953201,22.8165,172.5,172.47,60.0]
[1717090953404,22.8165,172.5,172.45,60.0]
[1717090953632,0.68372235,172.58,172.43,60.0]
[1717090953633,6.3583,172.47,172.43,60.0]
[1717090953916,6.3583,172.47,172.33,8.43942869]
[1717090953917,6.3583,172.47,172.45,60.0]
[1717090954421,6.2753,172.46,172.41,60.0]
[1717090954606,6.2753,172.45,172.41,60.0]
[1717090954805,22.279,172.45,172.41,60.0]
[1717090955505,22.279,172.45,172.39,60.0]
[1717090955710,22.279,172.45,172.37,60.0]
[1717090956999,22.279,172.45,172.35,60.0]
[1717090957222,0.68372235,172.44,172.33,60.0]
[1717090957401,0.68372235,172.44,172.37,60.0]
[1717090957804,0.68372235,172.44,172.28,2.1476]
[1717090957805,0.68372235,172.44,172.39,60.0]
[1717090958005,7.09282235,172.44,172.39,60.0]
[1717090958302,6.422,172.43,172.41,60.0]
[1717090958503,7.10572235,172.47,172.43,60.0]
[1717090958709,22.7985,172.46,172.43,60.0]
[1717090958909,6.422,172.45,172.41,60.0]
[1717090959104,16.3765,172.46,172.43,60.0]
[1717090959309,6.422,172.49,172.41,60.0]
[1717090959615,6.422,172.49,172.43,60.0]
[1717090962526,6.422,172.49,172.41,60.0]
[1717090962730,6.422,172.49,172.43,60.0]
[1717090963018,6.422,172.49,172.41,60.0]
[1717090963219,6.422,172.49,172.44,60.0]
[1717090963427,6.3053,172.5,172.44,60.0]
[1717090963621,0.68372235,172.51,172.45,60.0]
[1717090963826,22.51192235,172.51,172.45,60.0]
[1717090964323,22.51192235,172.51,172.43,60.0]
[1717090965117,22.51192235,172.51,172.41,60.0]
[1717090965433,22.51192235,172.51,172.3,380.9]
[1717090965434,22.51192235,172.51,172.43,60.0]
[1717090965809,22.51192235,172.51,172.32,17.69]
[1717090966013,22.51192235,172.51,172.41,60.0]
[1717090967129,0.68372235,172.5,172.41,60.0]
[1717090968909,0.68372235,172.5,172.39,60.0]
[1717090970329,0.68372235,172.49,172.39,60.0]
[1717090971225,16.0398,172.47,172.33,60.0]
[1717090971726,33.7298,172.47,172.33,60.0]
[1717090972318,23.1896,172.35,172.27,0.793509]
[1717090972524,23.1896,172.35,172.26,60.0]
[1717090972728,23.1896,172.35,172.1,40.313109]
[1717090972729,23.1896,172.35,172.28,60.0]
[1717090973034,23.1896,172.35,172.26,60.0]
[1717090974228,23.1896,172.35,172.24,60.0]
[1717090974632,23.1896,172.35,172.29,60.0]
[1717090974832,23.1896,172.35,172.14,4.2987]
[1717090974833,23.1896,172.35,172.27,60.0]
[1717090975221,23.1896,172.35,172.25,60.0]
[1717090975636,23.1896,172.35,172.23,60.0]
[1717090976021,23.1896,172.35,172.21,60.0]
[1717090976213,23.1896,172.35,172.26,60.0]
[1717090977228,23.1896,172.35,172.24,60.0]
[1717090977419,23.1896,172.35,172.22,60.0]
[1717090977940,20.33,172.33,172.2,60.0]
[1717090978247,6.4044,172.32,172.18,60.0]
[1717090979235,24.0944,172.32,172.18,60.0]
[1717090979827,24.1405,172.3,172.13,60.0]
[1717090980133,20.33,172.27,172.18,60.0]
[1717090980519,20.33,172.27,172.15,60.0]
[1717090981126,30.0,172.26,172.15,60.0]
[1717090981531,20.33,172.27,172.15,60.0]
[1717090982953,6.4505,172.3,172.2,60.0]
[1717090984412,6.4505,172.3,172.18,60.0]
[1717090984613,6.4505,172.3,172.21,60.0]
[1717090984817,6.4505,172.3,172.23,60.0]
[1717090988529,6.4505,172.3,172.21,60.0]
[1717090989120,6.4505,172.3,172.23,60.0]
[1717090990050,6.4505,172.3,172.25,60.0]
[1717090990342,22.6026,172.29,172.25,60.0]
[1717090991640,6.2634,172.27,172.21,60.0]
[1717090991841,22.7065,172.27,172.21,60.0]
[1717090992223,6.2634,172.27,172.23,60.0]
[1717090993333,6.2634,172.27,172.24,60.0]
[1717090993534,0.68372235,172.3,172.16,17.69]
[1717090993535,6.009,172.29,172.21,60.0]
[1717090994661,6.009,172.29,172.23,60.0]
[1717090995454,6.009,172.29,172.21,60.0]
[1717090996156,6.009,172.29,172.18,60.0]
[1717090996341,17.5,172.25,172.18,60.0]
[1717090998447,17.5,172.25,172.16,60.0]
[1717090999659,17.5,172.25,172.11,23.7577]
[1717090999849,17.5,172.25,172.15,60.0]
[1717091001353,0.68372235,172.24,172.15,60.0]
[1717091001838,17.5,172.22,172.13,60.0]
[1717091002252,6.1794,172.22,172.13,60.0]
[1717091002448,23.6794,172.22,172.13,60.0]
[1717091002964,23.6794,172.22,172.11,60.0]
[1717091003542,23.6794,172.22,172.1,0.793509]
[1717091003764,17.5,172.19,172.11,60.0]
[1717091004259,17.5,172.19,172.1,0.793509]
[1717091004560,17.5,172.16,172.1,0.793509]
[1717091004770,17.5,172.16,172.1,0.42295001]
[1717091005059,17.5,172.13,172.1,0.42295001]
[1717091005269,21.8723,172.11,172.1,0.42295001]
[1717091009868,3.00196129,172.52,172.1,0.42295001]
[1717091009869,15.69762235,172.16,172.12,60.0]
[1717091010077,6.1828,172.17,172.12,60.0]
[1717091011071,22.0087,172.18,172.12,60.0]
[1717091012477,6.0889,172.17,172.13,45.0]
[1717091013371,21.6104,172.17,172.1,60.42295001]
[1717091013576,15.4561,172.17,172.1,60.42295001]
[1717091015365,15.4561,172.17,172.11,45.0]
[1717091017084,6.1543,172.18,172.11,45.0]
[1717091017260,6.1543,172.18,172.12,60.0]
[1717091017973,22.2195,172.21,172.16,60.0]
[1717091018579,6.1956,172.2,172.16,60.0]
[1717091021160,0.68372235,172.23,172.16,60.0]
[1717091021784,21.3868,172.24,172.18,60.0]
[1717091025111,6.0399,172.24,172.18,60.0]
[1717091025292,6.0399,172.24,172.2,60.0]
[1717091025491,0.68372235,172.26,172.2,60.0]
[1717091027207,5.45085391,172.26,172.18,60.0]
[1717091027504,0.68372235,172.26,172.18,60.0]
[1717091028098,0.68372235,172.26,172.16,60.0]
[1717091028407,0.68372235,172.26,172.12,17.69]
[1717091028408,0.68372235,172.26,172.18,60.0]
[1717091029908,0.68372235,172.26,172.2,60.0]
[1717091030895,0.68372235,172.26,172.18,60.0]
[1717091031212,21.12372235,172.26,172.18,60.0]
[1717091031421,21.12372235,172.26,172.16,60.0]
[1717091031592,21.12372235,172.26,172.15,60.0]